[Event "4th Tata Steel India Rapid Women 2022"]
[Site "Kolkota"]
[Date "2022.11.30"]
[Round "6.5"]
[White "Savitha Shri B"]
[Black "Vaishali, Rameshbabu"]
[Result "0-1"]
[ECO "C76"]
[WhiteElo "2411"]
[BlackElo "2454"]
[Annotator "TA"]
[PlyCount "84"]
[EventDate "2022.11.29"]
[EventType "tourn"]
[EventCountry "IND"]
[SourceTitle "playchess.com"]
[Source "ChessBase"]
[SourceQuality "1"]
[TimeControl "900+10"]

{[%evp 18,84,38,25,29,29,34,20,45,43,49,18,28,0,10,-34,-15,-25,-12,-1,0,-20,-26,-31,5,-50,-25,-37,-28,-371,-316,-338,-225,-218,-185,-179,-146,-153,-154,-143,-135,-121,-103,-226,-231,-407,-234,-314,-310,-326,-231,-502,-495,-433,-440,-457,-485,-618,-402,-673,-434,-726,-553,-551,-550,-985,-977,-1481,-1381]} 1. e4 {[%emt 0:00:01]} e5 {[%emt 0:00:06]} 2. Nf3 {[%emt 0:00:03]} Nc6 {[%emt 0:00:02]} 3. Bb5 {[%emt 0:00:01]} a6 {[%emt 0:00:04]} 4. Ba4 {[%emt 0:00:01]} d6 {[%emt 0:00:03]} 5. O-O {[%emt 0:00:09]} Bd7 {[%emt 0:00:08]} 6. c3 {[%emt 0:00:46]} g6 {[%emt 0:00:09]} 7. d4 {[%emt 0:00:33]} Bg7 {[%emt 0:00:02]} 8. dxe5 {[%emt 0:03:08]} dxe5 {[%emt 0:02:28]} 9. Bg5 {[%emt 0:00:11]} Nge7 {[%emt 0:02:09]} 10. Nbd2 {[%emt 0:00:02]} h6 {[%emt 0:00:39] C76: Ruy Lopez: Deferred Steinitz: 5 c3 Bd7 6 d4 g6.} 11. Be3 {[%emt 0:01:35]} O-O {[%emt 0:00:32]} 12. Bb3 {[%emt 0:00:53] [#]} Kh8 $146 {[%emt 0:00:48] The position is equal.} ({Predecessor:} 12... Na5 13. Nc4 Nxb3 14. axb3 Nc6 15. Qd2 Kh7 16. Bc5 Re8 17. Rfd1 Be6 18. Qc2 Qc8 19. Ne3 b6 20. Ba3 Qb7 21. Rd2 Na5 22. c4 Nc6 23. Nd5 {½-½ (23) Miranda Mesa,E (2441)-Ordaz Valdes,L (2414) Havana 2018}) 13. Re1 {[%emt 0:00:31]} Qe8 {[%emt 0:02:34]} 14. Nf1 {[%emt 0:00:50]} f5 {[%emt 0:01:23]} 15. exf5 {[%emt 0:00:58]} gxf5 {[%emt 0:00:03]} 16. Bc5 {[%emt 0:00:06]} e4 {[%emt 0:02:01]} 17. Nd4 {[%emt 0:01:18]} b6 {[%emt 0:00:16]} 18. Nxc6 {[%emt 0:01:51]} Bxc6 {[%emt 0:00:04]} 19. Bxe7 {[%emt 0:01:37]} Qxe7 {[%emt 0:00:02]} 20. Qh5 {[%emt 0:00:53]} Qg5 {[%emt 0:02:47]} (20... a5 {simplifies} 21. a4 Rad8 22. Rad1 Rxd1 23. Rxd1 f4) 21. Ng3 {[%emt 0:00:31]} (21. Qxg5 $11 hxg5 22. Ne3) 21... Rae8 {[%emt 0:00:25]} 22. Rad1 {[%emt 0:00:50]} Re5 {[%emt 0:01:03]} 23. h4 $2 {[%emt 0:01:17][%mdl 8192]} (23. Qxg5 $11 {and White is okay.} hxg5 24. Ne2) 23... Qe7 $19 {[%emt 0:00:15] [#] Hoping for ...f4.} 24. Nf1 {[%emt 0:00:49]} ({Wrong is} 24. Qg6 $2 Be8 $19) 24... Be8 {[%emt 0:00:42] Against Qg6} 25. Qe2 {[%emt 0:00:01]} Qxh4 {[%emt 0:00:08] And now ...f4 would win.} 26. Rd5 {[%emt 0:00:01]} Bc6 {[%emt 0:00:20]} 27. Rxe5 {[%emt 0:00:08]} Bxe5 {[%emt 0:00:02][%cal Bg7e5,Be5d6,Bd6b4,Bb4c5][%mdl 32]} 28. Qc4 {[%emt 0:00:13]} Bb5 {[%emt 0:00:14][%cal Bc6b5,Bb5e8,Be8h5][%mdl 32] A strong pair of Bishops.} 29. Qd5 {[%emt 0:00:18]} Bd6 {[%emt 0:00:04] Black is more active.} 30. c4 {[%emt 0:00:10]} (30. a4 $17 {was necessary.} Bd3 31. Qe6) 30... Be8 {[%emt 0:00:08]} 31. g3 $2 {[%emt 0:00:18] [#]} (31. c5 {keeps fighting.} Bxc5 32. Qe5+ Qf6 33. Qxc7) 31... Qg5 $40 {[%emt 0:00:12][%mdl 128] Black goes for the king.} (31... Qf6 $142 32. Re2 Bc5) 32. Qd4+ {[%emt 0:00:08]} Kh7 {[%emt 0:00:04]} 33. Bc2 {[%emt 0:00:16]} Bh5 {[%emt 0:00:11]} 34. b4 $2 {[%emt 0:00:08]} (34. a3 {is a better defense.}) 34... Bxb4 {[%emt 0:00:20]} 35. Rb1 {[%emt 0:00:09]} Bc5 {[%emt 0:00:04]} 36. Qe5 {[%emt 0:00:04]} Rf7 {[%emt 0:00:13] White must now prevent ...Bf3.} 37. Bd1 {[%emt 0:00:11]} Bg6 {[%emt 0:00:20] Strongly threatening ...f4.} 38. Be2 {[%emt 0:00:08]} (38. Qf4 $142) 38... Re7 {[%emt 0:00:09] Black is clearly winning.} 39. Qd5 {[%emt 0:00:01]} (39. Qf4 $142) 39... f4 {[%emt 0:00:09]} 40. Qxg5 {[%emt 0:00:20]} hxg5 {[%emt 0:00:02]} 41. Bg4 {[%emt 0:00:01]} e3 {[%emt 0:00:06][%cal Be4e3,Be3e2][%mdl 32]} 42. Rd1 {[%emt 0:00:13]} e2 {[%emt 0:00:08] Weighted Error Value: White=0.89/Black=0.47} 0-1

[Event "4th Tata Steel India Rapid Women 2022"]
[Site "Kolkota"]
[Date "2022.12.01"]
[Round "7.1"]
[White "Vaishali, Rameshbabu"]
[Black "Koneru, Humpy"]
[Result "1/2-1/2"]
[WhiteElo "2454"]
[BlackElo "2574"]
[Annotator "TA"]
[PlyCount "18"]
[EventDate "2022.11.29"]
[EventType "tourn"]
[EventCountry "IND"]
[SourceTitle "playchess.com"]
[Source "ChessBase"]
[SourceQuality "1"]
[TimeControl "900+10"]

{[%evp 9,18,-2,9,6,14,-6,-8,-6,-8,-6,-13]} 1. d4 {[%emt 0:00:06]} Nf6 {[%emt 0:00:05]} 2. Bf4 {[%emt 0:00:03]} d5 {[%emt 0:00:08]} 3. e3 {[%emt 0:00:04]} c5 {[%emt 0:00:17]} 4. Nf3 {[%emt 0:00:05]} Nc6 {[%emt 0:00:22]} 5. Nbd2 {[%emt 0:00:14]} Bg4 {[%emt 0:01:36] The position is equal.} 6. Bb5 {[%emt 0:01:57] D02: 1 d4 d5 2 Nf3 sidelines, including 2...Nf6 3 g3 and 2...Nf6 3 Bf4.} (6. dxc5 e5 7. Bg5 Bxc5) 6... e6 {[%emt 0:00:54]} 7. h3 {[%emt 0:01:46]} Bxf3 {[%emt 0:01:13] [#]} 8. Bxc6+ $146 {[%emt 0:01:27]} ({Don't play} 8. gxf3 cxd4 9. exd4 Nh5 $17) ({Predecessor:} 8. Qxf3 Qb6 9. c4 cxd4 10. exd4 Bb4 11. Bxc6+ bxc6 12. O-O Qxd4 13. Rfd1 O-O 14. Rac1 Qxb2 {½-½ (74) Sankalp,G (2488)-Aditya,M (2486) Delhi 2022}) 8... bxc6 {[%emt 0:00:03]} 9. Nxf3 {[%emt 0:00:03]} Bd6 {[%emt 0:02:19] An interesting draw.   Weighted Error Value: White=0.05 (flawless) /Black=0.06 (flawless)} 1/2-1/2

[Event "4th Tata Steel India Rapid Women 2022"]
[Site "Kolkota"]
[Date "2022.12.01"]
[Round "7.2"]
[White "Ushenina, Anna"]
[Black "Muzychuk, Mariya"]
[Result "1-0"]
[ECO "D85"]
[WhiteElo "2454"]
[BlackElo "2528"]
[Annotator "TA"]
[PlyCount "59"]
[EventDate "2022.11.29"]
[EventType "tourn"]
[EventCountry "IND"]
[SourceTitle "playchess.com"]
[Source "ChessBase"]
[SourceQuality "1"]
[TimeControl "900+10"]

{[%evp 14,59,0,10,16,8,9,16,26,12,38,27,32,20,28,0,0,0,4,0,0,0,0,0,0,7,19,-2,20,14,20,25,24,20,29,27,36,27,105,85,64,8,8,8,312,303,612,591]} 1. d4 {[%emt 0:00:06]} Nf6 {[%emt 0:00:01]} 2. c4 {[%emt 0:00:08]} g6 {[%emt 0:00:01]} 3. Nc3 {[%emt 0:00:18]} d5 {[%emt 0:00:01]} 4. cxd5 {[%emt 0:00:04]} Nxd5 {[%emt 0:00:01]} 5. Bd2 {[%emt 0:00:05]} Bg7 {[%emt 0:00:31]} 6. e4 {[%emt 0:00:08]} Nxc3 {[%emt 0:00:13]} 7. Bxc3 {[%emt 0:00:14]} O-O {[%emt 0:00:23]} 8. Qd2 {[%emt 0:00:05]} c5 {[%emt 0:00:29][%cal Rc5d4] D85: Exchange Grünfeld: Unusual White 7th moves and lines with 7 Nf3.} 9. d5 {[%emt 0:00:04]} e6 {[%emt 0:00:51]} 10. Bc4 {[%emt 0:00:23]} exd5 {[%emt 0:00:41] The position is equal.} 11. Bxd5 {[%emt 0:01:34]} Nd7 {[%emt 0:00:23]} 12. Bxg7 {[%emt 0:06:41]} Kxg7 {[%emt 0:13:35]} 13. Ne2 {[%emt 0:00:04]} Nf6 {[%emt 0:00:00]} (13... Nb6 {feels hotter.} 14. O-O-O Qf6 15. Qc3 Rd8) 14. Nc3 {[%emt 0:00:09]} Be6 {[%emt 0:00:00]} 15. Bxe6 {[%emt 0:01:38] [#]} fxe6 $146 {[%emt 0:00:00]} ({Predecessor:} 15... Qxd2+ 16. Kxd2 fxe6 17. Ke2 Kf7 18. Rhd1 Ke7 19. f3 Rfd8 20. Ke3 e5 21. a4 Rd4 {½-½ (31) Ribli,Z (2575)-Borisek,J (2555) Slovenia 2013}) 16. Qxd8 {[%emt 0:01:00]} Raxd8 {[%emt 0:00:00]} 17. Ke2 {[%emt 0:00:13]} Rd4 {[%emt 0:00:00]} 18. f3 {[%emt 0:00:06]} Rfd8 {[%emt 0:00:00] [#] Strongly threatening ...Rd2+.} 19. Rhd1 {[%emt 0:00:03] Prevents Rd2+.} a6 {[%emt 0:00:00]} 20. Rxd4 {[%emt 0:00:55]} Rxd4 $11 {[%emt 0:00:00][%mdl 4096] Endgame KRN-KRN} 21. Rc1 {[%emt 0:00:36]} b5 {[%emt 0:00:00]} 22. b3 {[%emt 0:01:02]} Nd7 {[%emt 0:00:00]} 23. Nd1 {[%emt 0:01:25]} Kf6 {[%emt 0:00:00]} 24. Nf2 {[%emt 0:00:58]} Ke7 {[%emt 0:00:00]} 25. Ke3 {[%emt 0:00:14][%cal Oc1c5] Rxc5! is the strong threat.} Kd6 {[%emt 0:00:00]} (25... Rd6 $11 {keeps the balance.}) 26. Nd3 {[%emt 0:00:09][%cal Od3c5] Black must now prevent Nxc5!} e5 {[%emt 0:00:00]} 27. f4 {[%emt 0:00:08]} ({White should play} 27. g3 $14) 27... exf4+ {[%emt 0:00:12]} 28. Nxf4 {[%emt 0:00:02] Threatening Nd3.} a5 $2 {[%emt 0:01:49][%mdl 8192] [#]} (28... Nf6 $1 $11 {and Black is okay.}) 29. Nd3 $1 $18 {[%emt 0:00:27][%cal Od3c5] Threatens to win with Nxc5!} Ke6 $2 {[%emt 0:00:36]} (29... Ke7 30. Nxc5 Rd6) 30. Nxc5+ {[%emt 0:00:08] Weighted Error Value: White=0.09 (flawless) /Black=0.50} 1-0

[Event "4th Tata Steel India Rapid Women 2022"]
[Site "Kolkota"]
[Date "2022.12.01"]
[Round "7.3"]
[White "Kiolbasa, Oliwia"]
[Black "Savitha Shri B"]
[Result "1-0"]
[ECO "B92"]
[WhiteElo "2406"]
[BlackElo "2411"]
[Annotator "TA"]
[PlyCount "101"]
[EventDate "2022.11.29"]
[EventType "tourn"]
[EventCountry "IND"]
[SourceTitle "playchess.com"]
[Source "ChessBase"]
[SourceQuality "1"]
[TimeControl "900+10"]

{[%evp 19,101,4,8,10,4,5,2,13,16,14,30,8,3,0,0,0,0,0,8,8,7,11,54,21,34,4,4,3,85,100,193,183,217,224,196,205,241,189,277,158,157,144,176,161,253,246,261,249,551,218,323,330,396,369,420,390,355,275,474,478,516,514,447,419,6412,6541,7144,5527,5069,2887,2437,2084,29940,12822,11795,11038,29983,29984,29983,29984,29988,29989,29989,29990]} 1. e4 {[%emt 0:00:03]} c5 {[%emt 0:00:02]} 2. Nf3 {[%emt 0:00:02]} d6 {[%emt 0:00:05]} 3. d4 {[%emt 0:00:06]} cxd4 {[%emt 0:00:03]} 4. Nxd4 {[%emt 0:00:02]} Nf6 {[%emt 0:00:02]} 5. Nc3 {[%emt 0:00:03]} a6 {[%emt 0:00:02]} 6. Be2 {[%emt 0:01:21]} e5 {[%emt 0:00:17]} 7. Nb3 {[%emt 0:00:03]} Be7 {[%emt 0:00:02]} 8. Bg5 {[%emt 0:00:08]} Be6 {[%emt 0:00:06]} 9. Bxf6 {[%emt 0:00:05]} Bxf6 {[%emt 0:00:19]} 10. Qd3 {[%emt 0:00:50]} Nc6 {[%emt 0:02:00] 10...Be7 deserves study.} 11. O-O-O {[%emt 0:01:06] B92: Sicilian Najdorf: 6 Be2.} Nd4 {[%emt 0:02:55] was the old line (11...Qb6).} 12. Nxd4 {[%emt 0:00:13]} exd4 {[%emt 0:00:02]} 13. Nd5 {[%emt 0:00:23] The position is equal.} Bxd5 {[%emt 0:00:18]} 14. exd5 {[%emt 0:00:03]} O-O {[%emt 0:00:10]} 15. Qf3 {[%emt 0:03:12]} Re8 {[%emt 0:03:46]} 16. Bd3 {[%emt 0:02:16]} Re5 {[%emt 0:00:57]} 17. h4 {[%emt 0:04:01]} Qa5 {[%emt 0:00:24]} 18. Kb1 {[%emt 0:00:59]} Qxd5 {[%emt 0:00:44] [#]} 19. Qxd5 $146 {[%emt 0:01:25]} ({Predecessor:} 19. Qh3 Rae8 20. g4 Bd8 21. g5 Ba5 22. a3 Qc5 23. h5 Bc3 24. g6 Qb6 25. b3 {1-0 (36) Nguyen,A (2458)-Chu,W (2373) Ho Chi Minh City 2019}) 19... Rxd5 {[%emt 0:00:01]} 20. g4 {[%emt 0:00:01]} Be5 {[%emt 0:01:12] Against f4} 21. b4 {[%emt 0:00:52] And now a4 would win.} Rc8 {[%emt 0:02:51]} 22. a4 {[%emt 0:00:24] Strongly threatening Be4.} (22. c4 $2 dxc3 23. Kc2 (23. Bxh7+ $2 Kxh7 24. Rxd5 c2+ 25. Kc1 Bf4+ 26. Kb2 c1=Q+ $19) 23... Rd4 $19) 22... Bf4 $1 {[%emt 0:00:09]} 23. Be4 {[%emt 0:00:35][%mdl 64] Deflection} Re5 {[%emt 0:00:02]} (23... d3 $1 $11 {remains equal.} 24. Rxd3 Rxd3 25. cxd3 b5) 24. Rxd4 $16 {[%emt 0:00:11]} b5 {[%emt 0:01:03]} (24... Re7 $16) 25. Bb7 $36 {[%emt 0:00:36][%mdl 2048] Black is under strong pressure.} Rc4 {[%emt 0:00:46]} 26. Rxc4 {[%emt 0:00:02]} (26. Rxd6 Rxb4+ 27. Ka2 Rxa4+ 28. Kb3 h5 29. Rxa6 hxg4 30. Rxa4 bxa4+ 31. Kxa4 Re2 $17) 26... bxc4 {[%emt 0:00:01]} 27. Bxa6 {[%emt 0:00:01][%mdl 4096] Endgame KRB-KRB} Bd2 {[%emt 0:00:20] [#]} 28. Ka2 $1 {[%emt 0:00:24]} (28. Bxc4 Re4 29. Bb3 Bxb4 $16) 28... g5 {[%emt 0:00:10] [#]} (28... h5 $142 29. Ka3 (29. Bxc4 Re4 $16) 29... hxg4) 29. Bxc4 {[%emt 0:00:11]} (29. Ka3 $1 $18) 29... Bxb4 $16 {[%emt 0:00:13]} 30. Rb1 {[%emt 0:00:13]} Bc3 {[%emt 0:00:13]} 31. hxg5 {[%emt 0:00:12]} d5 {[%emt 0:00:02]} (31... Rxg5 {might work better.} 32. f3 Rc5) 32. Bd3 $18 {[%emt 0:00:11]} Rxg5 {[%emt 0:00:02]} 33. Bf5 {[%emt 0:00:05]} h5 $2 {[%emt 0:00:09]} (33... Kf8 {is a better chance.} 34. Rb5 (34. Bxh7 Rxg4 35. Rb8+ Ke7 $14) 34... Be1) 34. f3 $2 {[%emt 0:00:02]} (34. f4 Rxg4 35. Bxg4 hxg4 36. f5) 34... Bd2 {[%emt 0:00:26]} (34... Kh8 $142 35. Kb3 Be5) 35. Rd1 {[%emt 0:00:13]} Bf4 {[%emt 0:00:01]} 36. a5 {[%emt 0:00:05][%cal Ba4a5,Ba5a6][%mdl 32]} ({Don't do} 36. Rxd5 Kg7 37. a5 Kf6 $18) 36... h4 {[%emt 0:00:29]} 37. a6 {[%emt 0:00:01]} ({Weaker is} 37. Rxd5 Kh8 38. a6 Be3 $18) 37... Kh8 {[%emt 0:00:00]} 38. Bc8 {[%emt 0:00:30] aiming for a7.} Rg8 $2 {[%emt 0:00:13]} (38... Bb8 {was called for.} 39. Rh1 Re5 40. Rxh4+ Kg7) 39. Bb7 {[%emt 0:00:04]} Be3 {[%emt 0:00:02]} 40. Rxd5 {[%emt 0:00:08]} ({Less strong is} 40. Bxd5 Rg6 $18) 40... Kg7 {[%emt 0:00:43]} 41. Rh5 {[%emt 0:00:17] Inhibits h3.} Rh8 {[%emt 0:00:23]} (41... f5 $142 42. Rxh4 fxg4 43. Rxg4+ Kf8) 42. Rxh8 {[%emt 0:00:13]} Kxh8 {[%emt 0:00:01] KB-KB} 43. f4 {[%emt 0:00:05]} Kg7 {[%emt 0:00:17]} 44. Kb3 {[%emt 0:00:08]} Kf6 {[%emt 0:00:04]} 45. Kb4 {[%emt 0:00:17]} Ke6 {[%emt 0:00:07]} 46. c4 {[%emt 0:00:10] c5 would kill now.} Kd6 {[%emt 0:00:02]} 47. Bd5 {[%emt 0:00:11]} f6 {[%emt 0:00:01]} 48. g5 {[%emt 0:00:07] White mates.} fxg5 {[%emt 0:00:36]} 49. fxg5 {[%emt 0:00:01]} Kc7 {[%emt 0:00:16]} 50. g6 {[%emt 0:00:05]} Bd4 {[%emt 0:00:03]} 51. a7 {[%emt 0:00:11] Weighted Error Value: White=0.21 (precise) /Black=0.77} 1-0

[Event "4th Tata Steel India Rapid Women 2022"]
[Site "Kolkota"]
[Date "2022.12.01"]
[Round "7.4"]
[White "Harika, Dronavalli"]
[Black "Muzychuk, Anna"]
[Result "1/2-1/2"]
[ECO "A11"]
[WhiteElo "2507"]
[BlackElo "2525"]
[Annotator "TA"]
[PlyCount "44"]
[EventDate "2022.11.29"]
[EventType "tourn"]
[EventCountry "IND"]
[SourceTitle "playchess.com"]
[Source "ChessBase"]
[SourceQuality "1"]
[TimeControl "900+10"]

{[%evp 10,44,17,7,14,6,18,18,22,8,12,14,33,4,16,27,19,0,0,-20,0,-23,-14,-25,-12,-25,-28,-45,-13,-14,0,-37,0,-9,5,-40,0]} 1. c4 {[%emt 0:00:03]} c6 {[%emt 0:00:02]} 2. Nf3 {[%emt 0:00:02]} d5 {[%emt 0:00:03]} 3. g3 {[%emt 0:00:02]} Bg4 {[%emt 0:00:07]} 4. Bg2 {[%emt 0:00:29]} e6 {[%emt 0:00:13]} 5. O-O {[%emt 0:00:54]} Nf6 {[%emt 0:00:12]} 6. d3 {[%emt 0:00:45]} dxc4 {[%emt 0:01:40] is the new trend. A11: English Opening: 1...c6.} 7. dxc4 {[%emt 0:00:02]} Qxd1 {[%emt 0:00:02]} 8. Rxd1 {[%emt 0:00:01]} Nbd7 {[%emt 0:00:05] The position is equal.} 9. Nc3 {[%emt 0:00:30]} h6 {[%emt 0:00:25]} 10. b3 {[%emt 0:01:07] [#]} O-O-O $146 {[%emt 0:00:37]} ({Predecessor:} 10... Bb4 11. Bb2 O-O-O 12. h3 Bh5 13. Nd4 Nc5 14. Nc2 Bxc3 15. Rxd8+ Rxd8 16. Bxc3 Bxe2 {½-½ (47) Ding,L (2778)-Wang,H (2734) Danzhou 2016}) 11. Bb2 {[%emt 0:00:50]} Be7 {[%emt 0:00:15]} 12. Kf1 {[%emt 0:01:04]} Bh5 {[%emt 0:01:14]} 13. h3 {[%emt 0:00:58]} g5 {[%emt 0:00:35]} 14. Nd2 {[%emt 0:01:18]} Rhg8 {[%emt 0:00:58]} 15. Na4 {[%emt 0:01:47]} Bg6 {[%emt 0:01:33]} 16. Nf3 {[%emt 0:01:27]} Ne4 {[%emt 0:00:32]} 17. Bd4 {[%emt 0:01:24]} Nec5 {[%emt 0:03:40]} 18. Nxc5 {[%emt 0:00:45]} Bxc5 {[%emt 0:00:03]} 19. Bc3 {[%emt 0:00:34]} Be7 {[%emt 0:01:08]} 20. Bd4 {[%emt 0:01:14]} Bc5 {[%emt 0:00:13]} 21. Bc3 {[%emt 0:00:27]} Be7 {[%emt 0:00:06]} 22. Bd4 {[%emt 0:00:02]} Bc5 {[%emt 0:00:05] Weighted Error Value: White=0.15 (very precise) /Black=0.09 (flawless)} 1/2-1/2

[Event "4th Tata Steel India Rapid Women 2022"]
[Site "Kolkota"]
[Date "2022.12.01"]
[Round "7.5"]
[White "Dzagnidze, Nana"]
[Black "Vantika Agrawal"]
[Result "1-0"]
[ECO "A15"]
[WhiteElo "2517"]
[BlackElo "2362"]
[Annotator "TA"]
[PlyCount "69"]
[EventDate "2022.11.29"]
[EventType "tourn"]
[EventCountry "IND"]
[SourceTitle "playchess.com"]
[Source "ChessBase"]
[SourceQuality "1"]
[TimeControl "900+10"]

{[%evp 14,69,6,-5,-5,-16,-13,-17,5,-9,0,-24,0,-24,-28,-26,-36,-51,-26,-25,-30,-32,0,0,63,14,52,64,83,-14,-8,-113,235,252,690,689,693,684,615,479,469,466,657,666,639,620,29989,29990,29990,29991,29992,29993,29993,29993,29993,29994,29994,29994]} 1. c4 {[%emt 0:00:04]} Nf6 {[%emt 0:00:10]} 2. Nf3 {[%emt 0:00:07]} g6 {[%emt 0:00:02]} 3. b3 {[%emt 0:00:16]} Bg7 {[%emt 0:00:05]} 4. Bb2 {[%emt 0:00:00]} O-O {[%emt 0:00:11]} 5. g3 {[%emt 0:00:10]} d6 {[%emt 0:00:49]} 6. Bg2 {[%emt 0:00:34]} e5 {[%emt 0:01:19]} 7. O-O {[%emt 0:15:09]} Re8 {[%emt 0:00:34]} 8. Nc3 {[%emt 0:00:00]} c6 {[%emt 0:00:55] [#] A15: English Opening: 1...Nf6.} 9. h3 $146 {[%emt 0:00:00]} ({Predecessor:} 9. e4 a5 10. d4 exd4 11. Nxd4 Na6 12. Qc2 Nc5 13. Rad1 Qb6 14. a3 Bg4 15. Rd2 Rad8 16. h3 Bc8 17. Rfd1 h5 18. f4 h4 19. g4 Bxg4 20. hxg4 Nxg4 21. b4 axb4 22. axb4 {0-1 (32) Le,Q (2709)-Pichot,A (2630) Chess.com INT 2020}) 9... a5 {[%emt 0:02:03]} 10. e3 {[%emt 0:00:00]} h5 {[%emt 0:02:37] The position is equal.} 11. Ng5 {[%emt 0:00:00]} d5 {[%emt 0:02:09]} 12. cxd5 {[%emt 0:00:00]} (12. f4 $5 {[%cal Rf4e5]}) 12... cxd5 {[%emt 0:00:02]} (12... Nxd5 {is interesting.} 13. h4 Nb4 14. Nce4 f6) 13. Rc1 {[%emt 0:00:00][%cal Oc3d5,Ba1c1,Bc1c5,Bc5b5][%mdl 32]} Nc6 {[%emt 0:00:30]} 14. d3 {[%emt 0:00:00]} Bh6 {[%emt 0:01:01]} 15. h4 {[%emt 0:00:00]} Bg4 {[%emt 0:00:38]} 16. Qd2 {[%emt 0:00:00]} Rc8 {[%emt 0:00:33]} (16... d4 {looks sharper.} 17. Na4 Rc8 18. exd4 Nxd4 19. Bxd4 Rxc1 20. Qxc1 Qxd4 21. Qc4 Bxg5 22. hxg5 Nh7) 17. Na4 {[%emt 0:00:00]} Qe7 {[%emt 0:01:25]} 18. Rc5 {[%emt 0:00:00]} Rcd8 {[%emt 0:01:16]} (18... Nb4 $11 19. Rfc1 Nxa2 20. Rxc8 Bxc8) 19. Rfc1 {[%emt 0:00:18]} (19. Rb5 $14) 19... Bf8 {[%emt 0:01:09]} 20. Rb5 {[%emt 0:00:25]} Qc7 {[%emt 0:00:35]} 21. f4 {[%emt 0:00:33] White is much more active.} (21. Bc3 $16) 21... Bb4 $11 {[%emt 0:00:24]} 22. Qf2 {[%emt 0:00:14] [#]} (22. Bc3 $11) 22... d4 $2 {[%emt 0:00:09][%mdl 8192] This move loses the game for Black.} (22... Bf5 $1 $17 {and life is bright. Threatens to win with ...Ng4.} 23. Qe2 (23. Bxe5 Rxe5 24. fxe5 Ng4 $15) 23... Bg4) 23. fxe5 $18 {[%emt 0:00:41]} Nh7 $2 {[%emt 0:00:12]} (23... Bf5) 24. Nxh7 {[%emt 0:00:18]} ({Less strong is} 24. Bxd4 Nxg5 25. hxg5 Qe7 $18) 24... Kxh7 {[%emt 0:00:02]} 25. exd4 {[%emt 0:00:31]} Qd7 {[%emt 0:00:30]} 26. Nc5 {[%emt 0:00:10]} Bxc5 {[%emt 0:00:00]} 27. Rbxc5 {[%emt 0:00:10]} Nxd4 {[%emt 0:00:06]} (27... Kg8 $142 28. Bxc6 bxc6 29. Rxc6 Qf5) 28. Rc7 {[%emt 0:00:00]} ({Worse is} 28. Rxa5 Ne2+ 29. Kh2 Nxc1 30. Bxc1 Qf5 31. Qxf5 Bxf5 $11) 28... Ne2+ {[%emt 0:00:09]} 29. Kh2 {[%emt 0:00:00]} Qe6 {[%emt 0:00:12]} 30. Rxf7+ {[%emt 0:00:00] White mates.} Kg8 {[%emt 0:00:10]} 31. Rcc7 {[%emt 0:00:00]} ({Not} 31. Rxb7 Nxc1 32. Bxc1 Rxd3 $16) 31... Bf5 {[%emt 0:00:11]} 32. Rg7+ {[%emt 0:00:00]} Kh8 {[%emt 0:00:08]} 33. Rh7+ {[%emt 0:00:00]} Kg8 {[%emt 0:00:02]} 34. Rcg7+ {[%emt 0:00:00]} Kf8 {[%emt 0:00:17]} 35. Ba3+ {[%emt 0:00:00] Weighted Error Value: White=0.19 (very precise) /Black=0.85} 1-0